bitfinex/quotes_SOLUSD_20240829
["timestamp","ask_amount","ask_price","bid_price","bid_amount"]
[1724900753698,6.919,144.53,144.48,6.9213]
[1724900754206,20.12549,144.52,144.48,6.9213]
[1724900754500,20.25098,144.52,144.48,6.9213]
[1724900755200,11.01861404,144.57,144.48,12.98827417]
[1724900755201,24.00688821,144.57,144.48,12.98827417]
[1724900755370,12.98827417,144.57,144.48,12.98827417]
[1724900756199,6.918,144.55,144.46,19.29697417]
[1724900756400,20.25098,144.54,144.46,19.29697417]
[1724900756704,20.0,144.54,144.48,12.98827417]
[1724900756914,20.0,144.55,144.48,12.98827417]
[1724900757402,26.918,144.55,144.51,6.9198]
[1724900757912,0.25098,144.54,144.5,6.9203]
[1724900763715,52.16948,144.54,144.5,6.9203]
[1724900764110,52.16948,144.54,144.46,19.29697417]
[1724900766499,45.25098,144.54,144.46,19.29697417]
[1724900766691,32.98827417,144.53,144.45,16.3187]
[1724900766891,45.25098,144.52,144.45,16.3187]
[1724900767108,52.17068,144.52,144.47,6.9217]
[1724900767892,52.17068,144.52,144.48,6.9212]
[1724900768089,0.25098,144.52,144.48,6.9212]
[1724900768395,0.25098,144.52,144.49,6.9208]
[1724900769713,0.12549,144.52,144.49,6.9208]
[1724900775499,7.04499,144.52,144.48,6.9212]
[1724900775698,58.11376417,144.51,144.45,16.3187]
[1724900775904,58.11376417,144.51,144.41,12.98827417]
[1724900775905,27.04629,144.5,144.41,12.98827417]
[1724900776122,0.12549,144.49,144.41,12.98827417]
[1724900776827,6.9217,144.48,144.43,6.9234]
[1724900777029,0.12549,144.47,144.43,6.9234]
[1724900777207,0.25098,144.47,144.43,6.9234]
[1724900778236,52.17278,144.47,144.43,6.9234]
[1724900778405,73.72495417,144.47,144.4,6.9247]
[1724900778726,19.91137417,144.45,144.4,6.9247]
[1724900778926,20.12549,144.44,144.4,6.9247]
[1724900780520,20.12549,144.44,144.41,6.9246]
[1724900780813,20.0,144.44,144.41,6.9246]
[1724900782028,20.0,144.44,144.38,12.98827417]
[1724900782331,0.12549,144.43,144.37,15.4322]
[1724900785532,0.12549,144.43,144.4,6.9251]
[1724900789043,7.04959,144.43,144.38,6.9258]
[1724900789230,12.98827417,144.41,144.36,6.9269]
[1724900789546,0.12549,144.4,144.36,6.9269]
[1724900789716,0.25098,144.4,144.36,6.9269]
[1724900790316,0.25098,144.4,144.37,6.9266]
[1724900800639,65.0,144.42,144.38,6.9257]
[1724900800824,20.0,144.42,144.38,6.9257]
[1724900801028,0.12549,144.41,144.38,6.9257]
[1724900801639,20.0,144.42,144.39,6.9253]
[1724900801848,6.9228,144.45,144.37,12.98827417]
[1724900802043,72.17438,144.44,144.37,12.98827417]
[1724900802351,72.17438,144.44,144.4,6.9251]
[1724900802559,27.17438,144.44,144.4,6.9251]
[1724900802858,6.4341,144.46,144.42,6.9238]
[1724900803052,13.3565,144.46,144.42,6.9238]
[1724900804654,20.0,144.45,144.42,6.9238]
[1724900806458,13.23925417,144.44,144.39,6.9252]
[1724900806640,65.0,144.43,144.39,6.9252]
[1724900806846,0.25098,144.42,144.39,6.9252]
[1724900807541,0.25098,144.42,144.38,6.926]
[1724900807951,0.25098,144.42,144.35,35.90647417]
[1724900807952,0.25098,144.42,144.37,6.9265]
[1724900809241,6.9247,144.41,144.37,6.9265]
[1724900809457,0.12549,144.4,144.37,6.9265]
[1724900811054,0.12549,144.4,144.35,29.44637417]
[1724900811055,7.05069,144.4,144.35,16.4581]
[1724900811261,0.12549,144.39,144.35,16.4581]
[1724900812436,45.25098,144.4,144.36,6.9267]
[1724900817850,45.25098,144.4,144.37,6.9266]
[1724900818049,0.25098,144.4,144.37,6.9266]
[1724900818470,0.12549,144.4,144.37,6.9266]
[1724900820737,20.25098,144.41,144.37,6.9266]
[1724900821245,27.17568,144.41,144.37,6.9266]
[1724900823951,20.25098,144.41,144.38,6.9257]
[1724900824155,20.25098,144.41,144.37,6.9265]
[1724900824575,27.17568,144.41,144.37,6.9265]
[1724900826248,51.9253,144.4,144.31,22.0982]
[1724900826459,7.17658,144.39,144.31,15.9276]
[1724900826776,7.17658,144.39,144.31,28.91587417]
[1724900827156,0.25098,144.39,144.31,15.9276]
[1724900827361,20.25098,144.39,144.31,12.98827417]
[1724900827673,6.9275,144.36,144.31,6.9294]
[1724900827879,27.17868,144.35,144.3,6.9299]
[1724900830151,20.25098,144.35,144.32,6.9288]
[1724900830357,0.12549,144.35,144.3,12.98827417]
[1724900830578,20.0,144.36,144.3,12.98827417]
[1724900831274,20.0,144.36,144.33,6.9285]
[1724900831446,20.0,144.36,144.32,6.929]
[1724900831854,0.25098,144.35,144.32,6.929]
[1724900832962,20.0,144.36,144.33,6.9283]
[1724900833198,20.0,144.36,144.34,6.9279]
[1724900833359,20.0,144.37,144.34,6.9279]
[1724900833561,20.0,144.37,144.31,12.98827417]
[1724900833562,26.9266,144.37,144.33,6.9284]
[1724900833777,0.12549,144.36,144.33,6.9284]
[1724900834585,0.12549,144.36,144.31,6.929]
[1724900834586,0.25098,144.36,144.31,6.929]
[1724900834977,7.17808,144.36,144.31,6.929]
[1724900835161,6.9277,144.35,144.31,6.929]
[1724900835366,0.25098,144.34,144.31,6.929]
[1724900840890,0.25098,144.34,144.27,28.28417417]
[1724900847765,7.17938,144.34,144.27,15.2959]
[1724900847966,20.16765417,144.34,144.27,15.2959]
[1724900848193,20.16765417,144.34,144.29,6.93]
[1724900849086,20.16765417,144.34,144.23,15.9086]
[1724900849087,6.9305,144.29,144.23,15.9086]
[1724900849267,12.98827417,144.3,144.23,15.9086]
[1724900849471,45.25098,144.29,144.25,6.932]
[1724900849672,52.18158,144.29,144.25,6.932]
[1724900849983,52.18158,144.29,144.23,22.8415]
[1724900849984,6.9309,144.28,144.23,22.8415]
[1724900850181,6.9309,144.28,144.23,6.9329]
[1724900850878,0.12549,144.27,144.23,6.9329]
[1724900851096,0.25098,144.27,144.23,6.9329]
[1724900851871,6.9309,144.28,144.24,6.9327]
[1724900852787,6.9311,144.28,144.24,6.9327]
[1724900853397,0.25098,144.27,144.24,6.9327]
[1724900854890,0.25098,144.27,144.19,28.12807417]
[1724900855103,27.18248,144.27,144.22,6.9337]
[1724900855281,6.9327,144.25,144.2,6.9344]
[1724900855593,0.12549,144.24,144.2,6.9344]
[1724900855792,0.25098,144.24,144.2,6.9344]
[1724900855995,40.17215417,144.24,144.19,6.9351]
[1724900857092,40.17215417,144.24,144.2,6.9347]
[1724900857394,6.9335,144.23,144.16,15.9798]
[1724900857597,20.25098,144.22,144.16,15.9798]
[1724900857891,27.18518,144.22,144.17,6.9362]
[1724900858097,33.23925417,144.22,144.17,6.9362]
[1724900858598,12.98827417,144.21,144.16,6.9363]
[1724900858800,20.25098,144.2,144.16,6.9363]
[1724900859100,20.25098,144.2,144.13,15.5059]
[1724900859273,20.25098,144.2,144.14,6.9376]
[1724900859274,19.92357417,144.19,144.14,6.9376]
[1724900859470,0.12549,144.18,144.15,6.9371]
[1724900859670,0.25098,144.18,144.15,6.9371]
[1724900860094,0.12549,144.18,144.15,6.9371]
[1724900860283,0.25098,144.19,144.15,6.9371]
[1724900863098,20.0,144.2,144.14,12.98827417]
[1724900863281,6.9338,144.22,144.17,6.9362]
[1724900863480,26.9343,144.21,144.17,6.9362]
[1724900863681,26.9343,144.21,144.16,6.9366]
[1724900864088,6.9349,144.2,144.16,6.9366]
[1724900864802,0.12549,144.19,144.16,6.9366]
[1724900864981,0.25098,144.19,144.16,6.9366]
[1724900866099,0.25098,144.19,144.12,12.98827417]
[1724900866303,20.25098,144.19,144.12,12.98827417]
[1724900867303,20.25098,144.19,144.15,6.937]
[1724900868001,27.18618,144.19,144.15,6.937]
[1724900868401,27.18618,144.19,144.14,6.9375]
[1724900869500,6.9358,144.18,144.13,6.938]
[1724900869698,0.25098,144.17,144.13,6.938]
[1724900869901,20.25098,144.17,144.12,6.9385]
[1724900870802,12.98827417,144.16,144.12,6.9385]
[1724900871093,0.25098,144.15,144.12,6.9385]
[1724900872288,7.18828,144.15,144.11,6.939]
[1724900873117,6.938,144.14,144.09,6.9398]
[1724900873405,0.25098,144.13,144.09,6.9398]
[1724900874102,20.25098,144.13,144.09,6.9398]
[1724900874303,64.92697417,144.12,144.08,6.9405]
[1724900874504,0.25098,144.11,144.08,6.9405]
[1724900877024,26.9382,144.13,144.09,6.9398]
[1724900877315,0.12549,144.12,144.09,6.9398]
[1724900877615,0.25098,144.12,144.09,6.9398]
[1724900877790,0.25098,144.12,144.08,6.9404]
[1724900878706,0.25098,144.12,144.09,6.9399]
[1724900878909,0.12549,144.12,144.1,6.9395]
[1724900880404,6.9367,144.16,144.12,6.9386]
[1724900880807,6.9374,144.15,144.1,6.9395]
[1724900881518,6.9374,144.15,144.11,6.939]
[1724900881715,45.0,144.14,144.11,6.939]
[1724900881923,0.12549,144.13,144.11,6.939]
[1724900882698,21.1478,144.18,144.08,1.38506335]
[1724900882904,20.25098,144.17,144.1,12.98827417]
[1724900883105,20.12549,144.17,144.1,12.98827417]
[1724900883299,27.06179,144.17,144.13,6.9381]
[1724900883722,20.0,144.17,144.13,6.9381]
[1724900884112,28.0837,144.18,144.13,6.9381]
[1724900884924,0.12549,144.17,144.13,6.9381]
[1724900885226,0.25098,144.17,144.13,6.9381]
[1724900885402,33.23925417,144.17,144.12,6.9386]
[1724900885599,51.9371,144.16,144.08,12.98827417]
[1724900885800,0.25098,144.15,144.11,6.9386]
[1724900887209,0.25098,144.15,144.12,6.9385]
[1724900887710,0.25098,144.15,144.13,6.9381]
[1724900888299,0.25098,144.16,144.13,6.9381]
[1724900892530,0.25098,144.16,144.12,6.9385]
[1724900893005,45.25098,144.16,144.12,6.9385]
[1724900893912,6.9372,144.15,144.08,12.98827417]
[1724900894117,0.25098,144.14,144.08,12.98827417]
[1724900894312,6.9383,144.13,144.07,15.8142]
[1724900894517,45.25098,144.12,144.08,6.9402]
[1724900895322,58.23925417,144.12,144.07,6.9409]
[1724900896327,65.17805417,144.12,144.07,6.9409]
[1724900896828,65.17805417,144.12,144.08,6.9405]
[1724900897334,58.23925417,144.12,144.08,6.9405]
[1724900898218,65.17795417,144.12,144.08,6.9405]
[1724900898607,65.17795417,144.12,144.07,6.9409]
[1724900899833,6.9391,144.11,144.07,6.9409]
[1724900900031,0.25098,144.1,144.07,6.9409]
[1724900903063,0.25098,144.1,144.04,16.3619]
[1724900903228,0.25098,144.1,144.06,6.9412]
[1724900904333,45.25098,144.1,144.06,6.9412]
[1724900905528,0.25098,144.1,144.05,12.98827417]
[1724900905737,20.25098,144.11,144.05,12.98827417]
[1724900907337,20.25098,144.11,144.08,6.9404]
[1724900907538,20.25098,144.11,144.07,6.9409]
[1724900907741,51.9396,144.1,144.03,12.98827417]
[1724900907939,0.25098,144.09,144.06,6.9411]
[1724900910045,0.25098,144.09,144.07,6.941]
[1724900910927,26.9392,144.11,144.07,6.941]
[1724900911128,0.25098,144.1,144.07,6.941]
[1724900911538,0.25098,144.1,144.08,6.9405]
[1724900913137,0.25098,144.1,144.07,6.9409]
[1724900914929,0.25098,144.1,144.08,6.9405]
[1724900915130,0.12549,144.1,144.08,6.9405]
[1724900918454,6.176,144.13,144.1,6.9396]
[1724900918663,0.25098,144.12,144.1,6.9396]
[1724900918830,0.25098,144.12,144.09,6.94]
[1724900919158,15.8484,144.16,144.08,12.98827417]
[1724900919356,28.83667417,144.2,144.15,6.9372]
[1724900919554,6.9357,144.19,144.14,6.9376]
[1724900919730,12.98827417,144.18,144.12,6.9382]
[1724900920148,19.92437417,144.18,144.12,6.9382]
[1724900920632,20.0,144.17,144.12,6.9382]
[1724900920855,65.0,144.17,144.12,6.9382]
[1724900921169,20.0,144.17,144.13,6.9377]
[1724900922552,0.12549,144.16,144.13,6.9377]
[1724900922758,0.25098,144.16,144.13,6.9377]
[1724900929158,45.25098,144.16,144.12,6.9385]
[1724900929469,52.18768,144.16,144.12,6.9385]
[1724900936859,6.9372,144.15,144.11,6.9387]
[1724900937080,0.25098,144.14,144.11,6.9387]
[1724900937247,45.25098,144.14,144.11,6.9387]
[1724900939466,45.25098,144.14,144.12,6.9385]
[1724900939687,0.25098,144.14,144.12,6.9385]
[1724900940370,0.25098,144.14,144.13,6.9381]
[1724900940554,26.9363,144.17,144.13,6.9381]
[1724900940871,0.25098,144.16,144.13,6.9381]
[1724900941055,0.25098,144.16,144.11,12.98827417]
[1724900941056,7.18808,144.16,144.11,6.9387]
[1724900941371,45.0,144.15,144.11,6.9387]
[1724900941670,0.25098,144.14,144.12,6.9386]
[1724900945777,20.0,144.17,144.1,16.4753]
[1724900945981,20.0,144.16,144.14,6.9375]
[1724900946352,20.0,144.16,144.13,6.938]
[1724900946559,26.9362,144.17,144.13,6.938]
[1724900947160,0.25098,144.16,144.13,6.938]
[1724900948178,20.17595417,144.16,144.12,6.9385]
[1724900948382,65.17595417,144.16,144.12,6.9385]
[1724900949978,52.18768,144.16,144.12,6.9385]
[1724900952288,6.9372,144.15,144.11,6.939]
[1724900952492,0.25098,144.14,144.11,6.939]
[1724900952677,58.11376417,144.16,144.1,29.46357417]
[1724900952678,45.0,144.16,144.1,29.46357417]
[1724900952998,0.12549,144.15,144.13,6.9381]
[1724900953979,45.25098,144.16,144.13,6.9381]
[1724900954178,0.25098,144.16,144.14,6.9376]
[1724900954383,20.25098,144.17,144.14,6.9376]
[1724900955618,20.25098,144.17,144.13,6.938]
[1724900957168,27.18728,144.17,144.13,6.938]
[1724900958294,51.9367,144.16,144.12,6.9383]
[1724900958504,0.25098,144.15,144.12,6.9383]
[1724900959172,12.98827417,144.14,144.06,15.6891]
[1724900959395,12.98827417,144.12,144.08,6.9402]
[1724900959585,0.25098,144.11,144.08,6.9402]
[1724900964792,45.25098,144.11,144.08,6.9402]
[1724900968702,45.25098,144.11,144.07,6.9409]
[1724900969583,45.25098,144.11,144.02,16.581]
[1724900969584,12.98827417,144.1,144.02,16.581]
[1724900969909,72.19118,144.09,144.05,6.9416]
[1724900970197,72.19118,144.09,144.05,6.4416]
[1724900971100,20.25098,144.09,144.07,6.9409]
[1724900971315,20.0,144.11,144.08,6.9405]
[1724900971797,20.0,144.12,144.08,6.9405]
[1724900972400,0.12549,144.11,144.08,6.9405]
[1724900972594,45.25098,144.11,144.08,6.9405]
[1724900972798,45.01098,144.11,144.08,6.9405]
[1724900972998,45.0,144.11,144.08,6.9405]
[1724900974885,0.25098,144.1,144.08,6.9405]
[1724900981413,45.0,144.11,144.08,6.9405]
[1724900981606,45.0,144.11,144.04,12.98827417]
[1724900981607,20.0,144.12,144.09,6.94]
[1724900981796,0.12549,144.11,144.09,6.94]
[1724900984417,6.9378,144.14,144.1,6.9396]
[1724900984603,65.25098,144.13,144.1,6.9396]
[1724900984784,65.25098,144.13,144.11,6.9391]
[1724900984985,0.25098,144.13,144.11,6.9391]
[1724900985191,0.25098,144.14,144.11,6.9391]
[1724900985820,0.12549,144.14,144.11,6.9391]
[1724900985993,19.92457417,144.17,144.12,6.9386]
[1724900986190,12.98827417,144.17,144.13,6.9381]
[1724900987108,19.92457417,144.17,144.13,6.9381]
[1724900987311,20.0,144.16,144.13,6.9381]
[1724900988717,20.0,144.16,144.12,6.9385]
[1724900990916,0.12549,144.15,144.12,6.9385]
[1724900991222,0.25098,144.15,144.12,6.9385]
[1724900992721,65.25098,144.16,144.12,6.9385]
[1724900999527,65.25098,144.16,144.13,6.9381]
[1724900999722,9.80013216,144.19,144.12,12.98827417]
[1724901000024,20.0,144.18,144.12,28.86037417]
[1724901000231,6.9365,144.17,144.13,6.9378]
[1724901001015,0.25098,144.16,144.13,6.9378]
[1724901001211,45.25098,144.16,144.13,6.9378]
[1724901001525,45.25098,144.16,144.12,6.9385]
[1724901004630,6.9377,144.14,144.1,6.9395]
[1724901004812,0.25098,144.13,144.09,6.9401]
[1724901005013,52.18918,144.13,144.09,6.9401]
[1724901005338,6.9387,144.12,144.08,6.9404]
[1724901005511,0.25098,144.11,144.08,6.9404]
[1724901009040,0.25098,144.11,144.06,16.2216]
[1724901009326,0.12549,144.1,144.06,6.9414]
[1724901009540,0.25098,144.1,144.04,12.98827417]
[1724901009714,0.12549,144.12,144.06,12.98827417]
[1724901009914,0.12549,144.12,144.1,6.9395]
[1724901009915,0.25098,144.12,144.1,6.9395]
[1724901010114,20.25098,144.13,144.1,6.9395]
[1724901011708,20.25098,144.13,144.11,6.9387]
[1724901011914,0.25098,144.13,144.11,6.9387]
[1724901012235,45.25098,144.14,144.11,6.9387]
[1724901012439,45.25098,144.14,144.1,6.9395]
[1724901013040,52.18868,144.14,144.1,6.9395]
[1724901022150,52.18868,144.14,144.09,6.94]
[1724901022351,6.9382,144.13,144.09,6.94]
[1724901022545,0.25098,144.12,144.09,6.94]
[1724901024550,0.25098,144.12,144.05,12.98827417]
[1724901024726,0.12549,144.13,144.07,12.98827417]
[1724901024928,0.25098,144.14,144.07,12.98827417]
[1724901025233,52.18868,144.14,144.07,12.98827417]
[1724901025844,52.18868,144.14,144.1,6.9392]
[1724901029150,45.25098,144.14,144.07,12.98827417]
[1724901029359,0.25098,144.14,144.12,6.9382]
[1724901029741,0.12549,144.14,144.13,6.9381]
[1724901029948,20.0,144.16,144.13,6.9381]
[1724901030262,0.12549,144.15,144.13,6.9381]
[1724901031153,0.25098,144.15,144.13,6.9381]
[1724901034354,0.25098,144.15,144.12,6.9385]
[1724901037254,52.18818,144.15,144.11,6.9391]
[1724901037468,45.25098,144.15,144.11,6.9391]
[1724901038858,45.25098,144.15,144.12,6.9386]
[1724901050959,0.25098,144.15,144.12,6.9386]
[1724901051163,0.25098,144.15,144.13,6.9379]
[1724901051462,20.0,144.16,144.13,6.9379]
[1724901055581,20.0,144.16,144.12,6.9385]
[1724901055776,0.12549,144.15,144.12,6.9385]
[1724901057862,0.25098,144.15,144.12,6.9385]
[1724901061493,0.25098,144.15,144.14,6.9376]
[1724901061794,24.31135802,144.19,144.14,6.9376]
[1724901061795,20.0,144.18,144.14,6.9376]
[1724901061981,45.25098,144.17,144.14,6.9376]
[1724901062165,20.0,144.16,144.14,6.9376]
[1724901062368,0.12549,144.17,144.15,6.9372]
[1724901062696,20.0,144.17,144.15,6.9372]
[1724901063284,20.0,144.18,144.13,6.9377]
[1724901064471,0.12549,144.17,144.12,6.9383]
[1724901064671,45.25098,144.17,144.12,6.9383]
[1724901065677,65.17555417,144.17,144.12,6.9383]
[1724901065879,26.9368,144.16,144.11,6.9391]
[1724901066079,45.12549,144.15,144.11,6.9391]
[1724901066779,0.12549,144.14,144.1,6.9395]
[1724901069096,0.12549,144.14,144.09,16.5428]
[1724901069272,19.92677417,144.13,144.08,6.9404]
[1724901069597,45.25098,144.12,144.08,6.9404]
[1724901072994,45.25098,144.12,144.07,6.9409]
[1724901072995,52.18958,144.12,144.07,6.9409]
[1724901073301,12.98827417,144.11,144.01,15.2884]
[1724901073472,7.06519,144.1,144.05,6.9419]
[1724901073794,7.06519,144.1,144.06,6.9413]
[1724901073795,0.12549,144.09,144.06,6.9413]
[1724901073982,45.0,144.12,144.08,6.9401]
[1724901074184,20.25098,144.11,144.08,6.9401]
[1724901074493,0.25098,144.11,144.08,6.9401]
[1724901075800,6.9378,144.14,144.09,6.94]
[1724901075978,65.25098,144.13,144.09,6.94]
[1724901076297,20.0,144.13,144.1,6.9394]
[1724901076466,20.0,144.13,144.09,6.9399]
[1724901076794,20.0,144.14,144.09,6.9399]
[1724901077185,26.9378,144.14,144.09,6.9399]
[1724901077490,0.12549,144.13,144.09,6.9399]
[1724901077687,52.18918,144.13,144.08,6.9404]
[1724901079285,52.18918,144.13,144.08,28.207079]
[1724901080181,45.25098,144.13,144.09,6.9399]
[1724901081789,52.18918,144.13,144.08,28.207079]
[1724901082688,52.18918,144.13,144.09,6.94]
[1724901083114,45.25098,144.13,144.09,6.94]
[1724901083291,32.04580293,144.14,144.08,21.266679]
[1724901083605,12.04580293,144.16,144.09,1.38784332]
[1724901083802,20.0,144.15,144.09,1.38784332]
[1724901084195,20.0,144.15,144.11,6.9391]
[1724901084808,0.12549,144.14,144.11,6.9391]
[1724901086396,13.2732,144.18,144.09,12.98827417]
[1724901086580,20.0,144.17,144.13,6.938]
[1724901087897,0.25098,144.16,144.13,6.938]
[1724901090411,20.0,144.17,144.14,6.9376]
[1724901090731,26.9353,144.19,144.14,6.9376]
[1724901090890,45.25098,144.18,144.14,6.9376]
[1724901091212,20.0,144.17,144.14,6.9376]
[1724901092009,0.12549,144.16,144.13,6.938]
[1724901093792,0.25098,144.16,144.13,6.938]
[1724901095011,6.9377,144.14,144.08,21.266679]
[1724901095209,13.23925417,144.16,144.08,21.266679]
[1724901095210,0.12549,144.13,144.08,21.266679]
[1724901095413,6.9372,144.15,144.1,6.9392]
[1724901095604,45.25098,144.14,144.1,6.9392]
[1724901096115,45.25098,144.14,144.11,6.939]
[1724901096328,12.04580293,144.16,144.12,6.9383]
[1724901096504,26.68289,144.17,144.12,6.9383]
[1724901096705,0.25098,144.16,144.12,6.9383]
[1724901100919,7.18798,144.16,144.11,6.939]
[1724901101116,45.0,144.15,144.11,6.939]
[1724901101308,0.12549,144.14,144.11,6.939]
[1724901111924,0.12549,144.14,144.1,6.9392]
[1724901112236,0.25098,144.14,144.1,6.9392]
[1724901125754,0.25098,144.14,144.08,21.266679]
[1724901125924,83.23925417,144.14,144.08,21.266679]
[1724901126125,6.9394,144.11,144.08,21.266679]
[1724901126427,0.25098,144.1,144.08,21.266679]
[1724901126627,45.25098,144.1,144.08,21.266679]
[1724901127039,6.9401,144.09,144.08,21.266679]
[1724901127226,52.19108,144.09,144.08,21.266679]
[1724901127616,45.25098,144.09,144.08,21.266679]
[1724901127828,18.95401141,144.13,144.08,21.266679]
[1724901128117,65.25098,144.12,144.08,28.206979]
[1724901133436,72.18988,144.12,144.08,21.266679]
[1724901133760,6.9393,144.11,144.08,21.266679]
[1724901134060,45.25098,144.1,144.08,21.266679]
[1724901135250,52.19058,144.1,144.08,21.266679]
[1724901136337,6.9401,144.09,144.08,21.266679]
[1724901136659,52.19108,144.09,144.08,21.266679]
[1724901139364,72.19108,144.09,144.08,21.266679]
[1724901142865,84.20221343,144.09,144.08,21.266679]
[1724901144384,72.19108,144.09,144.08,21.266679]
[1724901154202,20.0,144.09,144.08,21.266679]
[1724901154395,6.9397,144.1,144.08,21.266679]
[1724901155394,0.12549,144.09,144.08,21.266679]
[1724901155582,7.06469,144.11,144.08,21.266679]
[1724901155583,20.0,144.1,144.08,21.266679]
[1724901155775,7.06469,144.11,144.08,21.266679]
[1724901155975,0.12549,144.1,144.08,21.266679]
[1724901156301,7.06469,144.11,144.08,21.266679]
[1724901159397,0.12549,144.11,144.08,21.266679]
[1724901159603,72.18958,144.12,144.08,28.207079]
[1724901159781,72.18958,144.12,144.08,21.266679]
[1724901165298,6.9391,144.11,144.08,21.266679]
[1724901165485,65.25098,144.12,144.09,6.94]
[1724901165680,0.25098,144.12,144.09,6.94]
[1724901166081,0.25098,144.12,144.08,44.160479]
[1724901180922,0.25098,144.12,144.09,6.94]
[1724901182392,6.9395,144.11,144.08,37.220079]
[1724901182598,0.25098,144.12,144.08,44.160579]
[1724901182823,0.12549,144.12,144.08,37.220079]
[1724901183115,20.0,144.15,144.08,37.220079]
[1724901183293,45.25098,144.14,144.08,37.220079]
[1724901184021,52.18908,144.14,144.09,6.9397]
[1724901187796,6.9382,144.13,144.09,6.9397]
[1724901188402,0.25098,144.12,144.09,6.9397]
[1724901188604,7.18968,144.12,144.08,37.220079]
[1724901189324,6.9392,144.11,144.08,37.220079]
[1724901189705,7.18968,144.12,144.08,37.220079]
[1724901196323,0.12549,144.12,144.08,44.160579]
[1724901196532,6.9384,144.13,144.08,44.160579]
[1724901197936,6.9384,144.13,144.09,6.94]
[1724901199930,52.06329,144.14,144.09,8.32565659]
[1724901200108,0.25098,144.13,144.09,8.32479109]
[1724901200308,51.9378,144.14,144.1,6.9395]
[1724901200535,6.9378,144.14,144.1,6.9395]
[1724901203931,7.18928,144.13,144.09,6.9397]
[1724901205925,0.12549,144.13,144.1,6.9394]
[1724901206126,6.9377,144.14,144.1,6.9394]
[1724901207831,12.01384514,144.18,144.09,12.98827417]
[1724901208133,26.9364,144.17,144.12,6.9383]
[1724901208939,6.9368,144.16,144.12,6.9383]
[1724901212629,6.9368,144.16,144.13,15.8376]
[1724901213344,27.06199,144.17,144.13,22.7754]
[1724901213720,7.06229,144.16,144.13,15.8376]
[1724901217721,6.9376,144.14,144.09,22.1123]
[1724901217927,45.0,144.15,144.09,22.1123]
[1724901217928,0.25098,144.13,144.09,22.1123]
[1724901218131,0.12549,144.13,144.09,22.1123]
[1724901218739,0.12549,144.14,144.09,22.1123]
[1724901219241,6.9382,144.13,144.09,22.1123]
[1724901222047,0.12549,144.12,144.09,22.1123]
[1724901230053,7.06329,144.14,144.1,6.9394]
[1724901230238,0.12549,144.13,144.1,6.9394]
[1724901249956,45.0,144.15,144.12,6.9385]
[1724901250138,6.9367,144.16,144.12,6.9385]
[1724901250139,7.06219,144.16,144.12,6.9385]
[1724901250343,0.25098,144.15,144.12,6.9385]
[1724901255637,1.20945137,144.19,144.1,12.98827417]
[1724901255956,1.20945137,144.19,144.15,6.9371]
[1724901255957,0.12549,144.18,144.15,6.9371]
[1724901256345,0.12549,144.18,144.13,15.527]
[1724901256346,0.12549,144.18,144.14,6.9375]
[1724901257457,45.25098,144.18,144.14,6.9375]
[1724901257851,45.25098,144.18,144.13,22.465]
[1724901259060,45.25098,144.18,144.13,6.938]
[1724901259247,6.9364,144.17,144.13,6.938]
[1724901259443,45.25098,144.16,144.13,6.938]
[1724901262464,0.25098,144.16,144.13,6.938]
[1724901262966,45.25098,144.17,144.13,6.938]
[1724901263868,0.25098,144.17,144.14,6.9375]
[1724901267461,7.18718,144.17,144.13,6.938]